bitfinex/quotes_SOLUSD_20250514
["timestamp","ask_amount","ask_price","bid_price","bid_amount"]
[1747234625946,5.64716512,177.08,177.04,19.28244076]
[1747234626374,5.64716512,177.08,177.05,19.28244076]
[1747234626576,5.64716512,177.08,177.03,20.94]
[1747234626754,5.64716512,177.08,177.05,19.28244076]
[1747234627277,24.92960588,177.08,177.04,19.28244076]
[1747234627568,43.64684636,177.07,177.03,19.28244076]
[1747234627778,43.64684636,177.06,177.02,19.28244076]
[1747234627943,5.64812199,177.05,177.02,19.28244076]
[1747234628579,5.64812199,177.05,177.03,19.28244076]
[1747234629066,5.64812199,177.05,177.02,19.28244076]
[1747234629287,43.64684636,177.06,177.04,19.28244076]
[1747234629579,43.64684636,177.06,177.05,19.28244076]
[1747234629777,43.64684636,177.06,177.0,26.58968773]
[1747234630077,43.64684636,177.06,177.05,19.28244076]
[1747234630380,49.29464936,177.06,177.03,19.28244076]
[1747234633700,49.29464936,177.06,177.04,19.28244076]
[1747234634578,43.64684636,177.06,177.04,19.28244076]
[1747234634784,49.29477529,177.06,177.04,19.28244076]
[1747234635572,49.29477529,177.06,177.0,20.94]
[1747234635777,68.57721605,177.06,176.99,1.6331]
[1747234635981,43.64684636,177.05,177.01,19.28244076]
[1747234636500,5.64844103,177.04,177.01,19.28244076]
[1747234637300,5.64844103,177.04,176.98,6.5085]
[1747234637301,43.64684636,177.03,176.99,19.28244076]
[1747234637893,43.64684636,177.03,176.98,20.9]
[1747234638205,43.64684636,177.03,177.0,19.28244076]
[1747234638384,5.6490792,177.02,176.98,20.9]
[1747234638586,5.6490792,177.02,176.99,19.28244076]
[1747234639219,24.93151996,177.02,176.97,20.98]
[1747234639383,24.93151996,177.02,176.97,40.26244076]
[1747234639582,24.93151996,177.02,176.98,19.28244076]
[1747234639788,5.6490792,177.02,176.98,19.28244076]
[1747234640308,5.6490792,177.02,176.91,1.6477]
[1747234640309,19.28244076,176.99,176.91,1.6477]
[1747234640517,19.28244076,176.97,176.92,19.28244076]
[1747234640701,43.64684636,176.96,176.92,19.28244076]
[1747234640889,43.64684636,176.95,176.91,19.28244076]
[1747234641398,43.64684636,176.95,176.93,12.06991238]
[1747234641809,43.64684636,176.95,176.94,12.06991238]
[1747234643091,43.64684636,176.95,176.93,12.06991238]
[1747234643886,43.64684636,176.95,176.89,26.55318765]
[1747234644087,43.64684636,176.94,176.92,12.06991238]
[1747234644308,43.64684636,176.94,176.9,20.9]
[1747234644507,43.64684636,176.94,176.91,12.06991238]
[1747234644716,49.29849514,176.94,176.87,26.55380875]
[1747234644891,49.29849514,176.94,176.88,20.9]
[1747234645214,49.29849514,176.94,176.9,12.06991238]
[1747234645588,49.29849514,176.94,176.88,20.9]
[1747234645909,49.29849514,176.94,176.9,12.06991238]
[1747234646100,49.29849514,176.94,176.91,12.06991238]
[1747234646305,5.65227221,176.92,176.9,12.06991238]
[1747234646710,5.65227221,176.92,176.89,20.9]
[1747234647019,5.65227221,176.92,176.9,12.06991238]
[1747234647521,49.2988813,176.93,176.91,12.06991238]
[1747234647906,49.2988813,176.93,176.92,12.06991238]
[1747234647907,43.64684636,176.93,176.92,12.06991238]
[1747234649305,43.64684636,176.98,176.92,17.72218459]
[1747234649607,43.64684636,176.98,176.96,12.06991238]
[1747234649818,43.64684636,176.98,176.95,12.06991238]
[1747234650320,49.29728497,176.98,176.95,12.06991238]
[1747234652007,49.29728497,176.98,176.9,31.65291124]
[1747234652218,61.36719735,176.98,176.93,12.06991238]
[1747234652423,12.06991238,176.97,176.93,12.06991238]
[1747234652602,12.06991238,176.97,176.92,32.94991238]
[1747234653036,12.06991238,176.97,176.93,12.06991238]
[1747234653705,12.06991238,176.97,176.92,12.06991238]
[1747234653706,5.65099457,176.96,176.92,12.06991238]
[1747234653905,17.72090695,176.96,176.87,26.55363078]
[1747234654210,31.84839338,176.96,176.91,12.06991238]
[1747234655102,31.84839338,176.96,176.92,12.06991238]
[1747234655615,5.65099457,176.96,176.93,12.06991238]
[1747234656031,5.65099457,176.96,176.94,12.06991238]
[1747234656531,5.65072455,176.97,176.94,12.06991238]
[1747234656709,49.2972658,176.98,176.95,12.06991238]
[1747234656909,49.2972658,176.98,176.96,12.06991238]
[1747234658536,49.2972658,176.98,176.95,12.06991238]
[1747234659034,43.64684636,176.98,176.96,12.06991238]
[1747234659269,43.64684636,176.98,176.91,6.4224]
[1747234659270,49.29731051,176.98,176.92,5.65227221]
[1747234659541,49.29731051,176.98,176.96,12.06991238]
[1747234659741,43.64684636,176.98,176.96,12.06991238]
[1747234661324,49.29729636,176.98,176.96,12.06991238]
[1747234661527,43.64684636,176.98,176.96,12.06991238]
[1747234662237,49.29725726,176.98,176.96,12.06991238]
[1747234662423,49.29725726,176.98,176.95,20.88]
[1747234662622,49.29725726,176.98,176.96,12.06991238]
[1747234662623,43.64684636,176.98,176.96,12.06991238]
[1747234663016,43.64684636,176.98,176.97,12.06991238]
[1747234664338,43.64684636,176.98,176.95,26.53122484]
[1747234664543,43.64684636,176.98,176.97,12.06991238]
[1747234666222,43.64684636,176.98,176.97,12.06991238]
[1747234670651,43.64684636,177.02,176.97,17.72058763]
[1747234670852,49.2948895,177.06,177.01,12.06991238]
[1747234671027,43.64684636,177.06,177.05,12.06991238]
[1747234672424,52.27506719,177.07,177.05,12.06991238]
[1747234672737,52.27506719,177.07,177.06,12.06991238]
[1747234678263,43.64684636,177.1,177.06,17.71771538]
[1747234678427,43.64684636,177.1,177.09,12.06991238]
[1747234682141,43.64684636,177.1,177.07,12.06991238]
[1747234682142,49.29337374,177.1,177.07,12.06991238]
[1747234682347,49.29337374,177.1,177.04,20.82]
[1747234682634,43.64684636,177.09,177.06,12.06991238]
[1747234682855,43.64684636,177.09,177.05,32.86991238]
[1747234683066,43.64684636,177.09,177.06,12.06991238]
[1747234683558,5.64716512,177.08,177.06,12.06991238]
[1747234683960,5.64716512,177.08,177.05,32.86991238]
[1747234683961,43.64684636,177.07,177.05,32.86991238]
[1747234684270,43.64684636,177.07,177.04,32.88991238]
[1747234684757,43.64684636,177.07,177.05,12.06991238]
[1747234685053,43.64684636,177.07,177.06,12.06991238]
[1747234685971,49.2943304,177.07,177.06,12.06991238]
[1747234687674,43.64684636,177.07,177.06,12.06991238]
[1747234689352,49.2943304,177.07,177.06,12.06991238]
[1747234689778,43.64684636,177.07,177.06,12.06991238]
[1747234690694,49.2943304,177.07,177.04,20.82]
[1747234690863,49.2943304,177.07,177.04,32.88991238]
[1747234691065,49.2943304,177.07,177.05,12.06991238]
[1747234691363,49.2943304,177.07,177.06,12.06991238]
[1747234691573,43.64684636,177.07,177.06,12.06991238]
[1747234692491,43.64684636,177.07,177.06,12.06991238]
[1747234693396,49.29437539,177.07,177.05,12.06991238]
[1747234693783,49.29437539,177.07,177.06,12.06991238]
[1747234694179,49.29437539,177.07,177.04,53.66991238]
[1747234694805,43.64684636,177.06,177.0,8.1462]
[1747234695091,43.64684636,177.05,177.02,12.06991238]
[1747234695394,43.64684636,177.05,177.01,20.78]
[1747234695600,49.29524733,177.05,177.02,12.06991238]
[1747234695977,49.29524733,177.05,177.03,12.06991238]
[1747234696383,49.29524733,177.05,177.02,12.06991238]
[1747234696776,49.29524733,177.05,177.01,12.06991238]
[1747234697469,49.29524733,177.05,177.02,12.06991238]
[1747234697674,49.29524733,177.05,177.0,20.78]
[1747234697992,61.36515971,177.05,177.0,32.84991238]
[1747234698378,49.29524733,177.05,177.01,12.06991238]
[1747234698699,49.29524733,177.05,177.0,12.06991238]
[1747234698874,49.29524733,177.05,177.01,12.06991238]
[1747234699324,75.4854647,177.05,177.0,12.06991238]
[1747234699487,63.41555232,177.05,177.01,12.06991238]
[1747234700183,75.4854647,177.05,177.0,12.06991238]
[1747234700603,43.64684636,177.04,177.0,12.06991238]
[1747234700998,43.64684636,177.04,177.01,12.06991238]
[1747234702022,5.64876009,177.03,177.01,12.06991238]
[1747234702808,49.29540532,177.04,177.01,12.06991238]
[1747234703898,43.64684636,177.03,176.96,1.5746]
[1747234704085,12.06991238,177.02,176.97,12.06991238]
[1747234704903,55.71675874,177.03,176.98,12.06991238]
[1747234705302,16.24268033,177.02,176.97,12.06991238]
[1747234705616,16.24268033,177.02,176.97,32.82991238]
[1747234705819,5.64939833,177.01,176.98,12.06991238]
[1747234705999,5.64939833,177.01,176.97,32.82991238]
[1747234707328,5.64916202,177.02,176.99,12.06991238]
[1747234707695,49.29562633,177.03,177.01,12.06991238]
[1747234708407,43.64684636,177.03,177.01,12.06991238]
[1747234708726,43.64684636,177.03,177.02,12.06991238]
[1747234709819,49.29560645,177.03,177.01,12.06991238]
[1747234710229,49.29560645,177.03,176.99,20.76]
[1747234710526,49.29560645,177.03,177.0,12.06991238]
[1747234710703,49.29560645,177.03,177.01,12.06991238]
[1747234714826,49.29560645,177.03,176.99,20.76]
[1747234715028,49.29560645,177.03,177.0,12.06991238]
[1747234715538,49.29560645,177.03,176.99,32.78991238]
[1747234715727,55.71675874,177.02,176.97,20.72]
[1747234715927,43.64684636,177.01,176.97,20.72]
[1747234716112,43.64684636,177.01,176.98,12.06991238]
[1747234716919,5.64971751,177.0,176.98,12.06991238]
[1747234721038,5.64971751,177.0,176.97,32.78991238]
[1747234721728,5.64971751,177.0,176.97,32.76991238]
[1747234722242,5.64971751,177.0,176.97,12.06991238]
[1747234722430,5.64971751,177.0,176.97,32.76991238]
[1747234724035,12.06991238,176.99,176.95,20.7]
[1747234724549,12.06991238,176.99,176.94,12.06991238]
[1747234724721,17.71962989,177.0,176.95,32.76991238]
[1747234725042,5.65035597,176.98,176.95,32.76991238]
[1747234725244,12.06991238,176.97,176.92,1.5077]
[1747234725413,12.06991238,176.97,176.92,34.33761238]
[1747234725744,75.49300464,176.98,176.93,32.76991238]
[1747234725915,61.36711471,176.98,176.93,32.76991238]
[1747234726113,43.64684636,176.97,176.93,32.76991238]
[1747234726428,43.64684636,176.97,176.95,12.06991238]
[1747234726943,43.64684636,176.97,176.94,12.06991238]
[1747234727738,43.64684636,176.97,176.95,12.06991238]
[1747234729143,43.64684636,176.97,176.96,12.06991238]
[1747234730423,49.29752366,176.97,176.95,12.06991238]
[1747234730622,61.36743604,176.97,176.9,6.6216]
[1747234730825,61.36743604,176.97,176.92,12.06991238]
[1747234731751,49.29752366,176.97,176.92,12.06991238]
[1747234732048,43.64684636,176.97,176.96,12.06991238]
[1747234732248,43.64684636,176.97,176.95,12.06991238]
[1747234732636,43.64684636,176.97,176.92,5.65221598]
[1747234732951,49.29754979,176.97,176.95,12.06991238]
[1747234734055,43.64684636,176.97,176.95,12.06991238]
[1747234734421,43.64684636,176.97,176.96,12.06991238]
[1747234740631,12.06991238,177.03,176.96,17.72090695]
[1747234740632,49.29636031,177.01,176.96,17.72090695]
[1747234740863,49.29636031,177.01,176.96,5.65099457]
[1747234741031,49.29636031,177.01,176.98,12.06991238]
[1747234741933,43.64684636,177.01,176.99,12.06991238]
[1747234742666,49.29626427,177.01,176.99,12.06991238]
[1747234742844,49.29626427,177.01,176.98,12.06991238]
[1747234743247,49.29626427,177.01,176.94,1.5221]
[1747234743462,61.36617665,177.01,176.96,12.06991238]
[1747234743972,49.29626427,177.01,176.97,12.06991238]
[1747234745737,43.64684636,177.0,176.97,12.06991238]
[1747234745937,43.64684636,177.0,176.98,12.06991238]
[1747234746877,49.29662974,177.0,176.98,12.06991238]
[1747234748435,49.29662974,177.0,176.97,12.06991238]
[1747234748640,61.36654212,177.0,176.96,20.64]
[1747234748871,12.06991238,176.99,176.96,20.64]
[1747234749252,75.4908359,177.0,176.96,20.64]
[1747234749453,63.42092352,177.0,176.96,32.70991238]
[1747234750967,49.29662974,177.0,176.96,32.70991238]
[1747234751166,49.29662974,177.0,176.97,12.06991238]
[1747234751573,43.64684636,177.0,176.99,12.06991238]
[1747234752072,43.64684636,177.0,176.98,12.06991238]
[1747234754585,43.64684636,177.0,176.99,12.06991238]
[1747234755385,43.64684636,177.0,176.96,27.80628247]
[1747234755555,49.29662402,177.0,176.98,12.06991238]
[1747234755885,43.64684636,177.0,176.98,12.06991238]
[1747234758676,49.29656617,177.0,176.98,12.06991238]
[1747234759182,49.29656617,177.0,176.97,12.06991238]
[1747234760686,43.64684636,176.99,176.95,20.6]
[1747234760898,43.64684636,176.99,176.93,20.68]
[1747234761221,55.71675874,176.99,176.94,20.6]
[1747234761375,55.71675874,176.99,176.94,32.66991238]
[1747234762016,43.64684636,176.99,176.95,12.06991238]
[1747234765117,5.65035597,176.98,176.94,12.06991238]
[1747234765403,5.65035597,176.98,176.93,20.6]
[1747234765711,5.65035597,176.98,176.94,12.06991238]
[1747234768230,5.65035597,176.98,176.95,12.06991238]
[1747234768431,43.64684636,176.99,176.96,12.06991238]
[1747234769008,49.2969859,176.99,176.96,12.06991238]
[1747234769419,49.2969859,176.99,176.93,26.23187468]
[1747234769635,49.2969859,176.99,176.95,12.06991238]
[1747234770100,49.2969859,176.99,176.93,20.58]
[1747234770305,49.2969859,176.99,176.95,12.06991238]
[1747234771506,49.2969859,176.99,176.96,12.06991238]
[1747234772439,12.06991238,176.98,176.92,20.6]
[1747234772612,55.71675874,176.98,176.93,32.62991238]
[1747234772815,43.64684636,176.98,176.94,12.06991238]
[1747234773440,5.65067525,176.97,176.94,12.06991238]
[1747234775444,49.29732104,176.98,176.94,12.06991238]
[1747234775952,49.29732104,176.98,176.95,12.06991238]
[1747234777215,43.64684636,176.98,176.95,12.06991238]
[1747234777541,43.64684636,176.98,176.96,12.06991238]
[1747234778336,43.64684636,176.98,176.97,12.06991238]
[1747234779523,43.64684636,176.98,176.96,12.06991238]
[1747234780430,49.29720765,176.98,176.95,12.06991238]
[1747234780621,49.29720765,176.98,176.93,20.56]
[1747234780830,49.29720765,176.98,176.95,12.06991238]
[1747234781610,49.29720765,176.98,176.94,20.54]
[1747234781836,49.29720765,176.98,176.94,32.60991238]
[1747234782020,49.29720765,176.98,176.95,12.06991238]
[1747234785334,49.29720765,176.98,176.94,32.60991238]
[1747234791050,75.49300996,176.98,176.93,12.06991238]
[1747234791351,12.06991238,176.97,176.92,32.58991238]
[1747234791855,5.65099457,176.96,176.93,12.06991238]
[1747234792350,5.650699,176.97,176.93,12.06991238]
[1747234792551,5.650699,176.97,176.94,12.06991238]
[1747234793319,43.64684636,176.98,176.96,12.06991238]
[1747234794750,43.64684636,176.98,176.97,12.06991238]
[1747234796327,43.64684636,176.98,176.95,20.5]
[1747234796639,49.29720233,176.98,176.95,32.56991238]
[1747234796956,49.29720233,176.98,176.96,12.06991238]
[1747234800267,43.64684636,176.98,176.97,12.06991238]
[1747234800469,43.64684636,177.05,176.97,12.06991238]
[1747234800684,43.64684636,177.05,177.01,12.06991238]
[1747234800972,52.18994418,177.06,176.96,8.1337]
[1747234800973,12.06991238,177.03,176.96,8.1337]
[1747234801271,12.06991238,177.03,176.98,12.06991238]
[1747234801483,75.48630234,177.04,176.99,12.06991238]
[1747234801644,61.36519977,177.04,177.0,12.06991238]
[1747234801846,61.36519977,177.04,176.96,8.1337]
[1747234801847,43.64684636,177.03,176.96,8.1337]
[1747234802162,5.6490792,177.02,176.96,13.7846691]
[1747234802337,49.29569963,177.03,176.99,12.06991238]
[1747234802533,49.29569963,177.03,177.0,12.06991238]
[1747234802935,61.36561201,177.03,176.99,12.06991238]
[1747234803446,12.06991238,177.0,176.96,12.06991238]
[1747234803655,12.06991238,176.99,176.96,20.48]
[1747234803946,12.06991238,177.0,176.96,20.48]
[1747234804146,5.65003672,176.99,176.96,20.48]
[1747234804546,5.65003672,176.99,176.95,12.06991238]
[1747234805368,5.65003672,176.99,176.96,12.06991238]
[1747234805666,5.65003672,176.99,176.9,20.46]
[1747234805667,12.06991238,176.97,176.9,20.46]
[1747234805969,12.06991238,176.97,176.87,1.6654]
[1747234805970,12.06991238,176.92,176.87,13.73531238]
[1747234806172,12.06991238,176.92,176.88,20.46]
[1747234806372,17.72249444,176.92,176.88,20.46]
[1747234806579,12.06991238,176.91,176.87,1.6654]
[1747234806758,12.06991238,176.91,176.87,34.19531238]
[1747234806955,17.72249444,176.92,176.87,22.1254]
[1747234807155,17.72249444,176.92,176.87,12.06991238]
[1747234807357,17.72249444,176.92,176.87,32.52991238]
[1747234808238,5.65258206,176.92,176.88,12.06991238]
[1747234808787,55.71675874,176.93,176.87,20.46]
[1747234808788,43.64684636,176.93,176.9,12.06991238]
[1747234808951,43.64684636,176.93,176.91,12.06991238]
[1747234809874,12.06991238,177.01,176.92,12.06991238]
[1747234810039,43.64684636,177.0,176.97,12.06991238]
[1747234810440,49.29659147,177.0,176.96,20.46]
[1747234810678,49.29659147,177.0,176.96,32.52991238]
[1747234811055,61.36650385,177.0,176.96,20.46]
[1747234812288,5.65099457,176.96,176.92,12.06991238]
[1747234812448,5.65099457,176.96,176.93,20.44]
[1747234813279,17.72090695,176.96,176.91,12.06991238]
[1747234813700,5.65099457,176.96,176.93,12.06991238]
[1747234813977,43.64684636,176.95,176.9,20.5]
[1747234814155,43.64684636,176.95,176.92,32.50991238]
[1747234814890,43.64684636,176.95,176.93,12.06991238]
[1747234815193,49.29829058,176.95,176.92,12.06991238]
[1747234815359,49.29829058,176.95,176.91,32.50991238]
[1747234815681,61.36820296,176.95,176.91,32.50991238]
[1747234815882,61.36820296,176.95,176.91,20.44]
[1747234816049,61.36820296,176.95,176.91,12.06991238]
[1747234817110,49.29829058,176.95,176.91,12.06991238]
[1747234817379,61.36820296,176.95,176.91,12.06991238]
[1747234817878,61.36820296,176.95,176.9,20.5]
[1747234818190,12.06991238,176.92,176.87,32.50991238]
[1747234818552,12.06991238,176.92,176.87,20.44]
[1747234818749,5.65259171,176.91,176.87,32.50991238]
[1747234819349,5.65259171,176.91,176.87,12.06991238]
[1747234819687,17.72250409,176.91,176.84,5.65474446]
[1747234819865,17.72250409,176.91,176.87,12.06991238]
[1747234820177,26.0,176.87,176.78,12.06991238]
[1747234820349,12.06991238,176.82,176.75,20.42]
[1747234820554,12.06991238,176.82,176.77,12.06991238]
[1747234820973,5.65578869,176.81,176.77,12.06991238]
[1747234821173,49.30263505,176.81,176.77,12.06991238]
[1747234821595,12.06991238,176.78,176.71,20.42]
[1747234821785,12.06991238,176.78,176.73,12.06991238]
[1747234822204,12.06991238,176.78,176.71,20.42]
[1747234822379,12.06991238,176.77,176.71,20.42]
[1747234822574,12.06991238,176.75,176.71,32.48991238]
[1747234822774,12.06991238,176.75,176.71,20.42]
[1747234822990,61.37415948,176.76,176.71,32.48991238]
[1747234823183,61.37415948,176.76,176.69,20.42]
[1747234823389,61.37415948,176.76,176.71,12.06991238]
[1747234823390,55.71675874,176.76,176.71,12.06991238]
[1747234824097,43.64684636,176.76,176.73,12.06991238]
[1747234824302,43.64684636,176.8,176.75,12.06991238]
[1747234824534,43.64684636,176.8,176.79,12.06991238]
[1747234824706,43.64684636,176.8,176.79,32.48991238]
[1747234824886,43.64684636,176.8,176.79,20.42]
[1747234827101,43.64684636,176.8,176.78,12.06991238]
[1747234827307,43.64684636,176.8,176.73,26.28432314]
[1747234827308,12.06991238,176.79,176.74,12.06991238]
[1747234827492,12.06991238,176.78,176.74,20.42]
[1747234827689,12.06991238,176.77,176.74,20.42]
[1747234827916,12.06991238,176.77,176.68,7.8393]
[1747234827917,12.06991238,176.76,176.7,5.65922893]
[1747234828088,12.06991238,176.76,176.72,12.06991238]
[1747234828614,43.64684636,176.77,176.73,12.06991238]
[1747234828978,49.30393433,176.77,176.73,12.06991238]
[1747234829530,49.30393433,176.77,176.73,19.35492586]
[1747234829717,49.30397439,176.77,176.73,19.35492586]
[1747234829891,68.65890025,176.77,176.71,20.42]
[1747234830087,68.65890025,176.77,176.72,19.35492586]
[1747234830485,19.35492586,176.75,176.71,39.77492586]
[1747234830703,19.35492586,176.75,176.71,20.42]
[1747234831324,19.35492586,176.74,176.71,20.42]
[1747234831520,25.01280259,176.75,176.71,39.77492586]
[1747234831815,25.01280259,176.75,176.71,19.35492586]
[1747234832192,19.35492586,176.75,176.71,19.35492586]
[1747234832399,63.00177222,176.76,176.72,19.35492586]
[1747234832626,68.65929837,176.76,176.72,19.35492586]
[1747234832909,43.64684636,176.76,176.75,19.35492586]
[1747234833111,63.00177222,176.8,176.75,19.35492586]
[1747234833322,63.00177222,176.8,176.76,19.35492586]
[1747234833780,43.64684636,176.8,176.77,19.35492586]
[1747234833981,43.64684636,176.8,176.77,39.75492586]
[1747234835484,43.64684636,176.8,176.76,5.6573399]
[1747234835707,68.65788491,176.8,176.75,39.75492586]
[1747234835923,49.30295905,176.8,176.76,19.35492586]
[1747234836310,43.64684636,176.8,176.76,19.35492586]
[1747234836510,43.64684636,176.8,176.78,19.35492586]
[1747234837933,43.64684636,176.8,176.77,19.35492586]
[1747234838303,43.64684636,176.8,176.78,19.35492586]
[1747234839938,43.64684636,176.8,176.76,19.35492586]
[1747234839939,49.30304066,176.8,176.76,19.35492586]
[1747234840303,19.35492586,176.79,176.71,46.44]
[1747234840507,63.00177222,176.79,176.74,19.35492586]
[1747234840709,63.00177222,176.79,176.75,19.35492586]
[1747234840906,43.64684636,176.78,176.75,19.35492586]
[1747234841303,43.64684636,176.78,176.76,19.35492586]
[1747234842233,49.30361074,176.78,176.75,19.35492586]
[1747234844218,43.64684636,176.78,176.76,19.35492586]
[1747234844835,43.64684636,176.78,176.77,19.35492586]
[1747234845224,43.64684636,176.78,176.73,26.03825563]
[1747234845430,49.30364136,176.78,176.74,19.35492586]
[1747234845735,49.30364136,176.78,176.73,20.38]
[1747234846334,68.65856722,176.78,176.73,39.73492586]
[1747234846528,63.00177222,176.77,176.72,19.35492586]
[1747234847132,25.0123144,176.76,176.72,19.35492586]
[1747234847334,19.35492586,176.75,176.71,20.44]
[1747234847536,19.35492586,176.72,176.65,20.44]
[1747234847837,43.64684636,176.74,176.61,5.66189322]
[1747234847838,19.35492586,176.69,176.61,5.66189322]
[1747234848042,19.35492586,176.68,176.64,19.35492586]
[1747234848539,43.64684636,176.7,176.64,19.35492586]
[1747234848840,19.35492586,176.68,176.64,19.35492586]
[1747234850935,43.64684636,176.7,176.67,19.35492586]
[1747234851244,43.64684636,176.7,176.68,19.35492586]
[1747234851432,43.64684636,176.7,176.63,14.1535034]
[1747234851746,43.64684636,176.7,176.69,19.35492586]
[1747234851927,43.64684636,176.74,176.69,19.35492586]
[1747234852131,43.64684636,176.74,176.71,19.35492586]
[1747234853127,43.64684636,176.74,176.68,20.36]
[1747234853328,43.64684636,176.74,176.71,19.35492586]
[1747234855057,49.30491218,176.74,176.71,19.35492586]
[1747234855939,49.30491218,176.74,176.7,39.71492586]
[1747234856247,49.30491218,176.74,176.71,19.35492586]
[1747234856434,43.64684636,176.74,176.71,19.35492586]
[1747234856635,43.64684636,176.74,176.65,1.13170871]
[1747234856636,19.35492586,176.72,176.65,1.13170871]
[1747234856837,19.35492586,176.66,176.56,8.60268896]
[1747234857036,19.35492586,176.66,176.6,19.35492586]
[1747234857257,19.35492586,176.67,176.62,19.35492586]
[1747234857558,5.66059096,176.66,176.59,5.66274147]
[1747234857769,5.66059096,176.66,176.62,19.35492586]
[1747234859131,5.66059096,176.66,176.59,5.66274147]
[1747234859132,25.01529229,176.67,176.58,5.66291819]
[1747234859334,19.35492586,176.66,176.58,5.66291819]
[1747234859557,19.35492586,176.66,176.61,19.35492586]
[1747234859751,19.35492586,176.66,176.58,5.66291819]
[1747234859950,19.35492586,176.66,176.61,19.35492586]
[1747234860154,5.65930956,176.7,176.62,19.35492586]
[1747234860461,19.35492586,176.68,176.64,19.35492586]
[1747234860763,19.35492586,176.68,176.63,19.35492586]
[1747234861056,25.0151582,176.68,176.63,19.35492586]
[1747234861272,25.0151582,176.68,176.61,20.36]
[1747234861448,19.35492586,176.72,176.67,19.35492586]
[1747234862047,5.65866908,176.72,176.67,19.35492586]
[1747234862241,5.65866908,176.72,176.68,19.35492586]
[1747234862444,25.01359494,176.72,176.67,19.35492586]
[1747234864080,19.35492586,176.68,176.61,20.36]
[1747234864239,19.35492586,176.68,176.63,39.69492586]
[1747234864438,19.35492586,176.69,176.63,20.34]
[1747234864660,89.00177222,176.71,176.66,19.35492586]
[1747234864882,43.64684636,176.7,176.67,19.35492586]
[1747234865559,43.64684636,176.7,176.68,19.35492586]
[1747234865762,43.64684636,176.74,176.69,19.35492586]
[1747234866077,43.64684636,176.74,176.7,19.35492586]
[1747234866367,49.3049072,176.74,176.7,19.35492586]
[1747234866746,43.64684636,176.73,176.69,19.35492586]
[1747234867076,43.64684636,176.73,176.7,19.35492586]
[1747234867272,43.64684636,176.73,176.71,19.35492586]
[1747234867450,43.64684636,176.73,176.66,1.13184483]
[1747234867451,43.64684636,176.73,176.7,39.69492586]
[1747234867968,43.64684636,176.73,176.72,19.35492586]
[1747234868165,43.64684636,176.79,176.72,19.35492586]
[1747234868481,43.64684636,176.79,176.77,19.35492586]
[1747234868650,43.64684636,176.79,176.78,19.35492586]
[1747234868965,43.64684636,176.79,176.77,19.35492586]
[1747234869665,43.64684636,176.79,176.7,20.34]
[1747234869666,49.30332077,176.79,176.7,20.34]
[1747234869860,49.30332077,176.79,176.75,19.35492586]
[1747234870171,49.30332077,176.79,176.76,19.35492586]
[1747234870773,49.30332077,176.79,176.77,19.35492586]
[1747234871138,43.64684636,176.79,176.77,19.35492586]
[1747234871466,43.64684636,176.79,176.78,19.35492586]
[1747234871682,49.302019,176.83,176.78,19.35492586]
[1747234871987,49.302019,176.83,176.8,19.35492586]
[1747234872774,43.64684636,176.83,176.81,19.35492586]
[1747234872949,43.64684636,176.83,176.82,19.35492586]
[1747234873153,43.64684636,176.83,176.81,19.35492586]
[1747234873990,22.25332554,176.87,176.82,19.35492586]
[1747234874299,49.30044842,176.88,176.79,5.6563135]
[1747234874459,49.30044842,176.88,176.85,19.35492586]
[1747234875296,49.30044842,176.88,176.84,19.35492586]
[1747234875473,49.30044842,176.88,176.85,19.35492586]
[1747234876865,43.64684636,176.88,176.87,19.35492586]
[1747234877685,49.30039678,176.88,176.87,19.35492586]
[1747234878372,43.64684636,176.88,176.87,19.35492586]
[1747234879690,49.29912409,176.92,176.87,19.35492586]
[1747234879865,49.29912409,176.92,176.88,19.35492586]
[1747234880064,19.35492586,176.91,176.83,20.36]
[1747234880278,19.35492586,176.89,176.84,20.3]
[1747234880458,19.35492586,176.89,176.85,19.35492586]
[1747234880658,5.65355042,176.88,176.84,19.35492586]
[1747234880870,5.65355042,176.88,176.85,19.35492586]
[1747234881491,5.65355042,176.88,176.86,19.35492586]
[1747234882302,5.65355042,176.88,176.83,40.66]
[1747234882478,5.65355042,176.88,176.85,19.35492586]
[1747234882670,25.00847628,176.88,176.83,60.01492586]
[1747234882876,19.35492586,176.85,176.78,26.9021]
[1747234883084,63.00177222,176.84,176.8,20.3]
[1747234883298,63.00177222,176.83,176.78,19.35492586]
[1747234883608,19.35492586,176.81,176.76,39.65492586]
[1747234883776,43.64684636,176.82,176.78,19.35492586]
[1747234883777,63.00177222,176.82,176.78,19.35492586]
[1747234884170,43.64684636,176.81,176.79,19.35492586]
[1747234884410,43.64684636,176.81,176.8,19.35492586]
[1747234884576,43.64684636,176.85,176.8,19.35492586]
[1747234884778,49.3014229,176.85,176.83,19.35492586]
[1747234885109,43.64684636,176.85,176.83,19.35492586]
[1747234885408,43.64684636,176.85,176.84,19.35492586]
[1747234885592,43.64684636,176.85,176.83,19.35492586]
[1747234885898,49.30142137,176.85,176.78,1.13101347]
[1747234886200,49.30142137,176.85,176.82,19.35492586]